Workbook

Sheet Juni2010 (2) (hidden)
A1: Løn | B1: 1 juni 2010 - 30 juni 2010 | Q1: Time beregning:
A2: Lønart | G2: 3025 | H2: 3425 | I2: 3426 | J2: 3600 | K2: 3602 | L2: 3605 | M2: 3610 | N2: 9091 | O2: 9092 | Q2: Betalt pause ved vagt over 5 timer | U2: 00:25:00 | V2: minutter | W2: 00:00:00 | X2: 06:00:00 | Y2: 18:00:00 | Z2: 14:00:00
A3: Dato | B3: Dag | D3: Vagt | E3: Start | F3: Slut | G3: Time SID | H3: Overtid 1-3 time | I3: Overtid 4 - time | J3: Aftenstillæg | K3: Nattillæg 00-06 | L3: Søndags tillæg | M3: Delt tjenste
A4: 2010-04-01 | B4: =PROPER(TEXT(A4,"ddd")) -> To | C4: =HelligdagsNavn(A4,0,0) -> Skærtorsdag | D4: 111 | E4: =IF($D4="","",IF(VLOOKUP($D4,#REF!,2)=0,"",VLOOKUP($D4,#REF!,2))) ->  | F4: =IF($D4="","",IF(VLOOKUP($D4,#REF!,3)="","",VLOOKUP($D4,#REF!,3))) ->  | G4: =IF($D4="","",VLOOKUP($D4,#REF!,13)) ->  | J4: =IF(E4<>"",IF(WEEKDAY(A4,2)<>6,IF(E4>F4,(F4-MAX(E4,(18/24))+(E4>F4))-F4,IF(F4>Y$2,(F4-MAX(E4,(18/24))),"")),IF(E4>F4,(F4-MAX(E4,(14/24))+(E4>F4))-F4,IF(F4>Z$2,(F4-MAX(E4,(14/24))),""))),"") ->  | K4: =IF(G4<>"",IF(S4<X$2,(X$2-S4),IF(V4<X$2,(V4-W$2),"")),"") ->  | L4: =IF(G4<>0,IF(WEEKDAY(A4,2)=7,G4,""),"") ->  | M4: =IF($D4="","",IF(VLOOKUP($D4,#REF!,15)="","",VLOOKUP($D4,#REF!,15))) ->  | N4: =IF(SUM(H4:I4)=0,"",SUM(H4:I4)) ->  | Q4: =IF(E4="","",HOUR(E4)) ->  | R4: =IF(E4="","",MINUTE(E4)) ->  | S4: =IF(E4="","",TIME(HOUR(E4),MINUTE(E4),0)) ->  | T4: =IF(F4="","",HOUR(F4)) ->  | U4: =IF(F4="","",MINUTE(F4)) ->  | V4: =TIME(HOUR(F4),MINUTE(F4),0) -> 
A5: 2010-04-02 | B5: =PROPER(TEXT(A5,"ddd")) -> Fr | C5: =HelligdagsNavn(A5,0,0) -> Langfredag | D5: 134 | E5: =IF($D5="","",IF(VLOOKUP($D5,#REF!,2)=0,"",VLOOKUP($D5,#REF!,2))) ->  | F5: =IF($D5="","",IF(VLOOKUP($D5,#REF!,3)="","",VLOOKUP($D5,#REF!,3))) ->  | G5: =IF($D5="","",VLOOKUP($D5,#REF!,13)) ->  | J5: =IF(E5<>"",IF(WEEKDAY(A5,2)<>6,IF(E5>F5,(F5-MAX(E5,(18/24))+(E5>F5))-F5,IF(F5>Y$2,(F5-MAX(E5,(18/24))),"")),IF(E5>F5,(F5-MAX(E5,(14/24))+(E5>F5))-F5,IF(F5>Z$2,(F5-MAX(E5,(14/24))),""))),"") ->  | M5: =IF($D5="","",IF(VLOOKUP($D5,#REF!,15)="","",VLOOKUP($D5,#REF!,15))) ->  | N5: =IF(SUM(H5:I5)=0,"",SUM(H5:I5)) ->  | V5: =TIME(HOUR(F5),MINUTE(F5),0) -> 
A6: 2010-04-03 | B6: =PROPER(TEXT(A6,"ddd")) -> Lø | D6: 612 | E6: =IF($D6="","",IF(VLOOKUP($D6,#REF!,2)=0,"",VLOOKUP($D6,#REF!,2))) ->  | F6: =IF($D6="","",IF(VLOOKUP($D6,#REF!,3)="","",VLOOKUP($D6,#REF!,3))) ->  | G6: =IF($D6="","",VLOOKUP($D6,#REF!,13)) ->  | J6: =IF(E6<>"",IF(WEEKDAY(A6,2)<>6,IF(E6>F6,(F6-MAX(E6,(18/24))+(E6>F6))-F6,IF(F6>Y$2,(F6-MAX(E6,(18/24))),"")),IF(E6>F6,(F6-MAX(E6,(14/24))+(E6>F6))-F6,IF(F6>Z$2,(F6-MAX(E6,(14/24))),""))),"") ->  | M6: =IF($D6="","",IF(VLOOKUP($D6,#REF!,15)="","",VLOOKUP($D6,#REF!,15))) ->  | V6: =TIME(HOUR(F6),MINUTE(F6),0) -> 
A7: 2010-04-04 | B7: Sø | C7: Påskedag | D7: 711 | E7: =IF($D7="","",IF(VLOOKUP($D7,#REF!,2)=0,"",VLOOKUP($D7,#REF!,2))) ->  | F7: =IF($D7="","",IF(VLOOKUP($D7,#REF!,3)="","",VLOOKUP($D7,#REF!,3))) ->  | G7: =IF($D7="","",VLOOKUP($D7,#REF!,13)) ->  | M7: =IF($D7="","",IF(VLOOKUP($D7,#REF!,15)="","",VLOOKUP($D7,#REF!,15))) ->  | O7: =IF($D7="","",IF(VLOOKUP($D7,#REF!,16)="","",VLOOKUP($D7,#REF!,16))) ->  | V7: =TIME(HOUR(F7),MINUTE(F7),0) -> 
A8: 2010-04-05 | B8: Ma | C8: 2. Påskedag | D8: 122 | E8: =IF($D8="","",IF(VLOOKUP($D8,#REF!,2)=0,"",VLOOKUP($D8,#REF!,2))) ->  | F8: =IF($D8="","",IF(VLOOKUP($D8,#REF!,3)="","",VLOOKUP($D8,#REF!,3))) ->  | G8: =IF($D8="","",VLOOKUP($D8,#REF!,13)) ->  | M8: =IF($D8="","",IF(VLOOKUP($D8,#REF!,15)="","",VLOOKUP($D8,#REF!,15))) ->  | O8: =IF($D8="","",IF(VLOOKUP($D8,#REF!,16)="","",VLOOKUP($D8,#REF!,16))) ->  | V8: =TIME(HOUR(F8),MINUTE(F8),0) -> 
A9: 2010-04-06 | B9: Ti | D9: 124 | E9: =IF($D9="","",IF(VLOOKUP($D9,#REF!,2)=0,"",VLOOKUP($D9,#REF!,2))) ->  | F9: =IF($D9="","",IF(VLOOKUP($D9,#REF!,3)="","",VLOOKUP($D9,#REF!,3))) ->  | G9: =IF($D9="","",VLOOKUP($D9,#REF!,13)) ->  | M9: =IF($D9="","",IF(VLOOKUP($D9,#REF!,15)="","",VLOOKUP($D9,#REF!,15))) ->  | O9: =IF($D9="","",IF(VLOOKUP($D9,#REF!,16)="","",VLOOKUP($D9,#REF!,16))) ->  | V9: =IF(F9="","",TIME(HOUR(F9),MINUTE(F9),0)) -> 
A10: 2010-04-07 | B10: On | D10: 606 | E10: =IF($D10="","",IF(VLOOKUP($D10,#REF!,2)=0,"",VLOOKUP($D10,#REF!,2))) ->  | F10: =IF($D10="","",IF(VLOOKUP($D10,#REF!,3)="","",VLOOKUP($D10,#REF!,3))) ->  | G10: =IF($D10="","",IF(VLOOKUP($D10,#REF!,13)="","",VLOOKUP($D10,#REF!,13))) ->  | M10: =IF($D10="","",IF(VLOOKUP($D10,#REF!,15)="","",VLOOKUP($D10,#REF!,15))) ->  | O10: =IF($D10="","",IF(VLOOKUP($D10,#REF!,16)="","",VLOOKUP($D10,#REF!,16))) -> 
A11: 2010-04-08 | B11: To | D11: 122 | E11: =IF($D11="","",IF(VLOOKUP($D11,#REF!,2)=0,"",VLOOKUP($D11,#REF!,2))) ->  | F11: =IF($D11="","",IF(VLOOKUP($D11,#REF!,3)="","",VLOOKUP($D11,#REF!,3))) ->  | G11: =IF($D11="","",IF(VLOOKUP($D11,#REF!,13)="","",VLOOKUP($D11,#REF!,13))) ->  | L11: =IF(G11<>0,IF(WEEKDAY(A11,2)=7,G11,""),"") ->  | M11: =IF($D11="","",IF(VLOOKUP($D11,#REF!,15)="","",VLOOKUP($D11,#REF!,15))) ->  | O11: =IF($D11="","",IF(VLOOKUP($D11,#REF!,16)="","",VLOOKUP($D11,#REF!,16))) -> 
A12: 2010-04-09 | B12: Fr | D12: afsp. | E12: =IF($D12="","",IF(VLOOKUP($D12,#REF!,2)=0,"",VLOOKUP($D12,#REF!,2))) ->  | F12: =IF($D12="","",IF(VLOOKUP($D12,#REF!,3)="","",VLOOKUP($D12,#REF!,3))) ->  | G12: =IF($D12="","",IF(VLOOKUP($D12,#REF!,13)="","",VLOOKUP($D12,#REF!,13))) ->  | M12: =IF($D12="","",IF(VLOOKUP($D12,#REF!,15)="","",VLOOKUP($D12,#REF!,15))) ->  | O12: =IF($D12="","",IF(VLOOKUP($D12,#REF!,16)="","",VLOOKUP($D12,#REF!,16))) -> 
A13: 2010-04-10 | B13: Lø | D13: 121 | E13: =IF($D13="","",IF(VLOOKUP($D13,#REF!,2)=0,"",VLOOKUP($D13,#REF!,2))) ->  | F13: =IF($D13="","",IF(VLOOKUP($D13,#REF!,3)="","",VLOOKUP($D13,#REF!,3))) ->  | G13: =IF($D13="","",IF(VLOOKUP($D13,#REF!,13)="","",VLOOKUP($D13,#REF!,13))) ->  | M13: =IF($D13="","",IF(VLOOKUP($D13,#REF!,15)="","",VLOOKUP($D13,#REF!,15))) ->  | O13: =IF($D13="","",IF(VLOOKUP($D13,#REF!,16)="","",VLOOKUP($D13,#REF!,16))) -> 
A14: 2010-04-11 | B14: Sø | D14: 606 | E14: =IF($D14="","",IF(VLOOKUP($D14,#REF!,2)=0,"",VLOOKUP($D14,#REF!,2))) ->  | F14: =IF($D14="","",IF(VLOOKUP($D14,#REF!,3)="","",VLOOKUP($D14,#REF!,3))) ->  | G14: =IF($D14="","",IF(VLOOKUP($D14,#REF!,13)="","",VLOOKUP($D14,#REF!,13))) ->  | M14: =IF($D14="","",IF(VLOOKUP($D14,#REF!,15)="","",VLOOKUP($D14,#REF!,15))) ->  | O14: =IF($D14="","",IF(VLOOKUP($D14,#REF!,16)="","",VLOOKUP($D14,#REF!,16))) -> 
A15: 2010-04-12 | B15: Ma | D15: 606 | E15: =IF($D15="","",IF(VLOOKUP($D15,#REF!,2)=0,"",VLOOKUP($D15,#REF!,2))) ->  | F15: =IF($D15="","",IF(VLOOKUP($D15,#REF!,3)="","",VLOOKUP($D15,#REF!,3))) ->  | G15: =IF($D15="","",IF(VLOOKUP($D15,#REF!,13)="","",VLOOKUP($D15,#REF!,13))) ->  | M15: =IF($D15="","",IF(VLOOKUP($D15,#REF!,15)="","",VLOOKUP($D15,#REF!,15))) ->  | O15: =IF($D15="","",IF(VLOOKUP($D15,#REF!,16)="","",VLOOKUP($D15,#REF!,16))) -> 
A16: 2010-04-13 | B16: Ti | D16: 127 | E16: =IF($D16="","",IF(VLOOKUP($D16,#REF!,2)=0,"",VLOOKUP($D16,#REF!,2))) ->  | F16: =IF($D16="","",IF(VLOOKUP($D16,#REF!,3)="","",VLOOKUP($D16,#REF!,3))) ->  | G16: =IF($D16="","",IF(VLOOKUP($D16,#REF!,13)="","",VLOOKUP($D16,#REF!,13))) ->  | M16: =IF($D16="","",IF(VLOOKUP($D16,#REF!,15)="","",VLOOKUP($D16,#REF!,15))) ->  | O16: =IF($D16="","",IF(VLOOKUP($D16,#REF!,16)="","",VLOOKUP($D16,#REF!,16))) -> 
A17: 2010-04-14 | B17: On | D17: x | E17: =IF($D17="","",IF(VLOOKUP($D17,#REF!,2)=0,"",VLOOKUP($D17,#REF!,2))) ->  | F17: =IF($D17="","",IF(VLOOKUP($D17,#REF!,3)="","",VLOOKUP($D17,#REF!,3))) ->  | G17: =IF($D17="","",IF(VLOOKUP($D17,#REF!,13)="","",VLOOKUP($D17,#REF!,13))) ->  | M17: =IF($D17="","",IF(VLOOKUP($D17,#REF!,15)="","",VLOOKUP($D17,#REF!,15))) ->  | O17: =IF($D17="","",IF(VLOOKUP($D17,#REF!,16)="","",VLOOKUP($D17,#REF!,16))) -> 
A18: 2010-04-15 | B18: To | D18: x | E18: =IF($D18="","",IF(VLOOKUP($D18,#REF!,2)=0,"",VLOOKUP($D18,#REF!,2))) ->  | F18: =IF($D18="","",IF(VLOOKUP($D18,#REF!,3)="","",VLOOKUP($D18,#REF!,3))) ->  | G18: =IF($D18="","",IF(VLOOKUP($D18,#REF!,13)="","",VLOOKUP($D18,#REF!,13))) ->  | M18: =IF($D18="","",IF(VLOOKUP($D18,#REF!,15)="","",VLOOKUP($D18,#REF!,15))) ->  | O18: =IF($D18="","",IF(VLOOKUP($D18,#REF!,16)="","",VLOOKUP($D18,#REF!,16))) -> 
A19: 2010-04-16 | B19: Fr | D19: 142 | E19: =IF($D19="","",IF(VLOOKUP($D19,#REF!,2)=0,"",VLOOKUP($D19,#REF!,2))) ->  | F19: =IF($D19="","",IF(VLOOKUP($D19,#REF!,3)="","",VLOOKUP($D19,#REF!,3))) ->  | G19: =IF($D19="","",IF(VLOOKUP($D19,#REF!,13)="","",VLOOKUP($D19,#REF!,13))) ->  | M19: =IF($D19="","",IF(VLOOKUP($D19,#REF!,15)="","",VLOOKUP($D19,#REF!,15))) ->  | O19: =IF($D19="","",IF(VLOOKUP($D19,#REF!,16)="","",VLOOKUP($D19,#REF!,16))) -> 
A20: 2010-04-17 | B20: Lø | D20: 143f | E20: =IF($D20="","",IF(VLOOKUP($D20,#REF!,2)=0,"",VLOOKUP($D20,#REF!,2))) ->  | F20: =IF($D20="","",IF(VLOOKUP($D20,#REF!,3)="","",VLOOKUP($D20,#REF!,3))) ->  | G20: =IF($D20="","",IF(VLOOKUP($D20,#REF!,13)="","",VLOOKUP($D20,#REF!,13))) ->  | M20: =IF($D20="","",IF(VLOOKUP($D20,#REF!,15)="","",VLOOKUP($D20,#REF!,15))) ->  | O20: =IF($D20="","",IF(VLOOKUP($D20,#REF!,16)="","",VLOOKUP($D20,#REF!,16))) -> 
A21: 2010-04-18 | B21: Sø | D21: 147 | E21: =IF($D21="","",IF(VLOOKUP($D21,#REF!,2)=0,"",VLOOKUP($D21,#REF!,2))) ->  | F21: =IF($D21="","",IF(VLOOKUP($D21,#REF!,3)="","",VLOOKUP($D21,#REF!,3))) ->  | G21: =IF($D21="","",IF(VLOOKUP($D21,#REF!,13)="","",VLOOKUP($D21,#REF!,13))) ->  | M21: =IF($D21="","",IF(VLOOKUP($D21,#REF!,15)="","",VLOOKUP($D21,#REF!,15))) ->  | O21: =IF($D21="","",IF(VLOOKUP($D21,#REF!,16)="","",VLOOKUP($D21,#REF!,16))) -> 
A22: 2010-04-19 | B22: Ma | D22: 146 | E22: =IF($D22="","",IF(VLOOKUP($D22,#REF!,2)=0,"",VLOOKUP($D22,#REF!,2))) ->  | F22: =IF($D22="","",IF(VLOOKUP($D22,#REF!,3)="","",VLOOKUP($D22,#REF!,3))) ->  | G22: =IF($D22="","",IF(VLOOKUP($D22,#REF!,13)="","",VLOOKUP($D22,#REF!,13))) ->  | M22: =IF($D22="","",IF(VLOOKUP($D22,#REF!,15)="","",VLOOKUP($D22,#REF!,15))) ->  | O22: =IF($D22="","",IF(VLOOKUP($D22,#REF!,16)="","",VLOOKUP($D22,#REF!,16))) -> 
A23: 2010-04-20 | B23: Ti | D23: 145 | E23: =IF($D23="","",IF(VLOOKUP($D23,#REF!,2)=0,"",VLOOKUP($D23,#REF!,2))) ->  | F23: =IF($D23="","",IF(VLOOKUP($D23,#REF!,3)="","",VLOOKUP($D23,#REF!,3))) ->  | G23: =IF($D23="","",IF(VLOOKUP($D23,#REF!,13)="","",VLOOKUP($D23,#REF!,13))) ->  | M23: =IF($D23="","",IF(VLOOKUP($D23,#REF!,15)="","",VLOOKUP($D23,#REF!,15))) ->  | O23: =IF($D23="","",IF(VLOOKUP($D23,#REF!,16)="","",VLOOKUP($D23,#REF!,16))) -> 
A24: 2010-04-21 | B24: On | D24: afsp. | E24: =IF($D24="","",IF(VLOOKUP($D24,#REF!,2)=0,"",VLOOKUP($D24,#REF!,2))) ->  | F24: =IF($D24="","",IF(VLOOKUP($D24,#REF!,3)="","",VLOOKUP($D24,#REF!,3))) ->  | G24: =IF($D24="","",IF(VLOOKUP($D24,#REF!,13)="","",VLOOKUP($D24,#REF!,13))) ->  | M24: =IF($D24="","",IF(VLOOKUP($D24,#REF!,15)="","",VLOOKUP($D24,#REF!,15))) ->  | O24: =IF($D24="","",IF(VLOOKUP($D24,#REF!,16)="","",VLOOKUP($D24,#REF!,16))) -> 
A25: 2010-04-22 | B25: To | D25: 715 | E25: =IF($D25="","",IF(VLOOKUP($D25,#REF!,2)=0,"",VLOOKUP($D25,#REF!,2))) ->  | F25: =IF($D25="","",IF(VLOOKUP($D25,#REF!,3)="","",VLOOKUP($D25,#REF!,3))) ->  | G25: =IF($D25="","",IF(VLOOKUP($D25,#REF!,13)="","",VLOOKUP($D25,#REF!,13))) ->  | M25: =IF($D25="","",IF(VLOOKUP($D25,#REF!,15)="","",VLOOKUP($D25,#REF!,15))) ->  | O25: =IF($D25="","",IF(VLOOKUP($D25,#REF!,16)="","",VLOOKUP($D25,#REF!,16))) -> 
A26: 2010-04-23 | B26: Fr | E26: =IF($D26="","",IF(VLOOKUP($D26,#REF!,2)=0,"",VLOOKUP($D26,#REF!,2))) ->  | F26: =IF($D26="","",IF(VLOOKUP($D26,#REF!,3)="","",VLOOKUP($D26,#REF!,3))) ->  | G26: =IF($D26="","",IF(VLOOKUP($D26,#REF!,13)="","",VLOOKUP($D26,#REF!,13))) ->  | M26: =IF($D26="","",IF(VLOOKUP($D26,#REF!,15)="","",VLOOKUP($D26,#REF!,15))) ->  | O26: =IF($D26="","",IF(VLOOKUP($D26,#REF!,16)="","",VLOOKUP($D26,#REF!,16))) -> 
A27: 2010-04-24 | B27: Lø | D27: 612 | E27: =IF($D27="","",IF(VLOOKUP($D27,#REF!,2)=0,"",VLOOKUP($D27,#REF!,2))) ->  | F27: =IF($D27="","",IF(VLOOKUP($D27,#REF!,3)="","",VLOOKUP($D27,#REF!,3))) ->  | G27: =IF($D27="","",IF(VLOOKUP($D27,#REF!,13)="","",VLOOKUP($D27,#REF!,13))) ->  | M27: =IF($D27="","",IF(VLOOKUP($D27,#REF!,15)="","",VLOOKUP($D27,#REF!,15))) ->  | O27: =IF($D27="","",IF(VLOOKUP($D27,#REF!,16)="","",VLOOKUP($D27,#REF!,16))) -> 
A28: 2010-04-25 | B28: Sø | E28: =IF($D28="","",IF(VLOOKUP($D28,#REF!,2)=0,"",VLOOKUP($D28,#REF!,2))) ->  | F28: =IF($D28="","",IF(VLOOKUP($D28,#REF!,3)="","",VLOOKUP($D28,#REF!,3))) ->  | G28: =IF($D28="","",IF(VLOOKUP($D28,#REF!,13)="","",VLOOKUP($D28,#REF!,13))) ->  | M28: =IF($D28="","",IF(VLOOKUP($D28,#REF!,15)="","",VLOOKUP($D28,#REF!,15))) ->  | O28: =IF($D28="","",IF(VLOOKUP($D28,#REF!,16)="","",VLOOKUP($D28,#REF!,16))) -> 
A29: 2010-04-26 | B29: Ma | E29: =IF($D29="","",IF(VLOOKUP($D29,#REF!,2)=0,"",VLOOKUP($D29,#REF!,2))) ->  | F29: =IF($D29="","",IF(VLOOKUP($D29,#REF!,3)="","",VLOOKUP($D29,#REF!,3))) ->  | G29: =IF($D29="","",IF(VLOOKUP($D29,#REF!,13)="","",VLOOKUP($D29,#REF!,13))) ->  | M29: =IF($D29="","",IF(VLOOKUP($D29,#REF!,15)="","",VLOOKUP($D29,#REF!,15))) ->  | O29: =IF($D29="","",IF(VLOOKUP($D29,#REF!,16)="","",VLOOKUP($D29,#REF!,16))) -> 
A30: 2010-04-27 | B30: Ti | E30: =IF($D30="","",IF(VLOOKUP($D30,#REF!,2)=0,"",VLOOKUP($D30,#REF!,2))) ->  | F30: =IF($D30="","",IF(VLOOKUP($D30,#REF!,3)="","",VLOOKUP($D30,#REF!,3))) ->  | G30: =IF($D30="","",IF(VLOOKUP($D30,#REF!,13)="","",VLOOKUP($D30,#REF!,13))) ->  | M30: =IF($D30="","",IF(VLOOKUP($D30,#REF!,15)="","",VLOOKUP($D30,#REF!,15))) ->  | O30: =IF($D30="","",IF(VLOOKUP($D30,#REF!,16)="","",VLOOKUP($D30,#REF!,16))) -> 
A31: 2010-04-28 | B31: On | D31: afsp. | E31: =IF($D31="","",IF(VLOOKUP($D31,#REF!,2)=0,"",VLOOKUP($D31,#REF!,2))) ->  | F31: =IF($D31="","",IF(VLOOKUP($D31,#REF!,3)="","",VLOOKUP($D31,#REF!,3))) ->  | G31: =IF($D31="","",IF(VLOOKUP($D31,#REF!,13)="","",VLOOKUP($D31,#REF!,13))) ->  | M31: =IF($D31="","",IF(VLOOKUP($D31,#REF!,15)="","",VLOOKUP($D31,#REF!,15))) ->  | O31: =IF($D31="","",IF(VLOOKUP($D31,#REF!,16)="","",VLOOKUP($D31,#REF!,16))) -> 
A32: 2010-04-29 | B32: =IF(A32="","",PROPER(TEXT(A32,"ddd"))) -> To | D32: afsp. | E32: =IF($D32="","",IF(VLOOKUP($D32,#REF!,2)=0,"",VLOOKUP($D32,#REF!,2))) ->  | F32: =IF($D32="","",IF(VLOOKUP($D32,#REF!,3)="","",VLOOKUP($D32,#REF!,3))) ->  | G32: =IF($D32="","",IF(VLOOKUP($D32,#REF!,13)="","",VLOOKUP($D32,#REF!,13))) ->  | M32: =IF($D32="","",IF(VLOOKUP($D32,#REF!,15)="","",VLOOKUP($D32,#REF!,15))) ->  | O32: =IF($D32="","",IF(VLOOKUP($D32,#REF!,16)="","",VLOOKUP($D32,#REF!,16))) -> 
A33: 2010-04-30 | B33: =IF(A33="","",PROPER(TEXT(A33,"ddd"))) -> Fr | C33: Store Bededag | D33: x | E33: =IF($D33="","",IF(VLOOKUP($D33,#REF!,2)=0,"",VLOOKUP($D33,#REF!,2))) ->  | F33: =IF($D33="","",IF(VLOOKUP($D33,#REF!,3)="","",VLOOKUP($D33,#REF!,3))) ->  | G33: =IF($D33="","",IF(VLOOKUP($D33,#REF!,13)="","",VLOOKUP($D33,#REF!,13))) ->  | M33: =IF($D33="","",IF(VLOOKUP($D33,#REF!,15)="","",VLOOKUP($D33,#REF!,15))) ->  | O33: =IF($D33="","",IF(VLOOKUP($D33,#REF!,16)="","",VLOOKUP($D33,#REF!,16))) -> 
B34: =IF(A34="","",PROPER(TEXT(A34,"ddd"))) ->  | E34: =IF($D34="","",IF(VLOOKUP($D34,#REF!,2)=0,"",VLOOKUP($D34,#REF!,2))) ->  | F34: =IF($D34="","",IF(VLOOKUP($D34,#REF!,3)="","",VLOOKUP($D34,#REF!,3))) ->  | G34: =IF($D34="","",IF(VLOOKUP($D34,#REF!,13)="","",VLOOKUP($D34,#REF!,13))) ->  | M34: =IF($D34="","",IF(VLOOKUP($D34,#REF!,15)="","",VLOOKUP($D34,#REF!,15))) ->  | O34: =IF($D34="","",IF(VLOOKUP($D34,#REF!,16)="","",VLOOKUP($D34,#REF!,16))) -> 
A35: Total timer | G35: =IF(SUM(G9:G34)<>"0",SUM(G4:G34),"") ->  | H35: =IF(SUM(H4:H34)<>"0",SUM(H4:H34),"") -> 0 | I35: 0 | N35: =SUM(N4:N34) -> 0 | O35: =SUM(O4:O34) -> 
A36: Timer 1/100 | G36: =IF(G35<>"",ROUND(G35*24,2),"") ->  | H36: =IF(H35<>"",ROUND(H35*24,2),"") -> 0 | I36: 0 | N36: 0
A37: Satser | G37: =Satser!B7 -> 125.76 | H37: =Satser!B9 -> 59.81 | I37: =Satser!B12 -> 119.62 | J37: 18.8 | K37: 21.81 | L37: 28.68 | M37: 67
G38: =IF(G35<>"",G36*G37,"") ->  | H38: 0 | I38: 0 | M38: =IF(M35<>"",M35*M37,"") -> 
A40: Lønart
A41: 3025 | G41: =G35 -> 
A42: 3425 | G42: =H35 -> 0
A43: 3426 | G43: =I35 -> 0
A44: Timer | G44: =SUM(G41:G43) ->  | H44: =IF(G44<>"",ROUND(G44*24,2),"") -> 
H45: =G37*H44 -> 

Sheet september2010
F1: 05:00:00
A3: Løn | B3: =PROPER(TEXT(A7,"dd mmmm åååå")) & PROPER(TEXT(A20," - dd mmmm åååå")) -> 03 April 2023 - 16 April 2023 | G3: Uge : | H3: =IF(A7="","",TRUNC((A7-WEEKDAY(A7,2)-DATE(YEAR(A7+4-WEEKDAY(A7,2)),1,-10))/7)) -> 14 | I3: - | K3: =IF(A14="","",TRUNC((A14-WEEKDAY(A14,2)-DATE(YEAR(A14+4-WEEKDAY(A14,2)),1,-10))/7)) -> 15
A4: Lønart | G4: 6-18 | H4: 18-21 | J4: 21-06
A6: Dato | B6: Dag | D6: Start | E6: Slut | F6: Arb. Tid | G6: Dag 06-18 | H6: Aftenstillæg 18-21 | J6: NatTimer 21-06
A7: 2023-04-03 | B7: =PROPER(TEXT(A7,"ddd")) -> Ma | C7: =HelligdagsNavn(A7,0,0) ->  | D7: 14:00:00 | E7: 00:45:00 | F7: =IF(D7="","",(E7-D7)+(D7>E7)) -> 10:45:00 | G7: =IF(AND(D7<>"",E7<>""),ColTime(D7,E7,Data!$J$3,Data!$L$3),"") -> 04:00:00 | H7: =IF(AND($D$7<>"",$E$7<>""),ColTime($D$7,$E$7,Data!$J$4,Data!$L$4),"") -> 03:00:00 | J7: =IF(AND($D$7<>"",$E$7<>""),ColTime($D$7,$E$7,Data!$J$5,Data!$L$5),"") -> 03:45:00
A8: =A7+1 -> 2023-04-04 | B8: Ti | C8: =HelligdagsNavn(A8,0,0) ->  | G8: =IF(AND(D8<>"",E8<>""),ColTime(D8,E8,Data!$J$3,Data!$L$3),"") ->  | H8: =IF(AND(D8<>"",E8<>""),ColTime(D8,E8,Data!$J$4,Data!$L$4),"") ->  | J8: =IF(AND(D8<>"",E8<>""),ColTime(D8,E8,Data!$J$5,Data!$L$5),"") -> 
A9: 2023-04-05 | B9: On | G9: =IF(AND(D9<>"",E9<>""),ColTime(D9,E9,Data!$J$3,Data!$L$3),"") ->  | H9: =IF(AND(D9<>"",E9<>""),ColTime(D9,E9,Data!$J$4,Data!$L$4),"") ->  | J9: =IF(AND(D9<>"",E9<>""),ColTime(D9,E9,Data!$J$5,Data!$L$5),"") ->  | R9: indtast kun i de grønne celler
A10: 2023-04-06 | B10: To | C10: Skærtorsdag | G10: =IF(AND(D10<>"",E10<>""),ColTime(D10,E10,Data!$J$3,Data!$L$3),"") ->  | H10: =IF(AND(D10<>"",E10<>""),ColTime(D10,E10,Data!$J$4,Data!$L$4),"") ->  | J10: =IF(AND(D10<>"",E10<>""),ColTime(D10,E10,Data!$J$5,Data!$L$5),"") -> 
A11: 2023-04-07 | B11: Fr | C11: Langfredag | G11: =IF(AND(D11<>"",E11<>""),ColTime(D11,E11,Data!$J$3,Data!$L$3),"") ->  | H11: =IF(AND(D11<>"",E11<>""),ColTime(D11,E11,Data!$J$4,Data!$L$4),"") ->  | J11: =IF(AND(D11<>"",E11<>""),ColTime(D11,E11,Data!$J$5,Data!$L$5),"") -> 
A12: 2023-04-08 | B12: Lø | G12: =IF(AND(D12<>"",E12<>""),ColTime(D12,E12,Data!$J$3,Data!$L$3),"") ->  | H12: =IF(AND(D12<>"",E12<>""),ColTime(D12,E12,Data!$J$4,Data!$L$4),"") ->  | J12: =IF(AND(D12<>"",E12<>""),ColTime(D12,E12,Data!$J$5,Data!$L$5),"") -> 
A13: 2023-04-09 | B13: Sø | C13: Påskedag | G13: =IF(AND(D13<>"",E13<>""),ColTime(D13,E13,Data!$J$3,Data!$L$3),"") ->  | H13: =IF(AND(D13<>"",E13<>""),ColTime(D13,E13,Data!$J$4,Data!$L$4),"") ->  | J13: =IF(AND(D13<>"",E13<>""),ColTime(D13,E13,Data!$J$5,Data!$L$5),"") -> 
A14: 2023-04-10 | B14: Ma | C14: =HelligdagsNavn(A14,0,0) -> 2. Påskedag | G14: =IF(AND(D14<>"",E14<>""),ColTime(D14,E14,Data!$J$3,Data!$L$3),"") ->  | H14: =IF(AND(D14<>"",E14<>""),ColTime(D14,E14,Data!$J$4,Data!$L$4),"") ->  | J14: =IF(AND(D14<>"",E14<>""),ColTime(D14,E14,Data!$J$5,Data!$L$5),"") -> 
A15: 2023-04-11 | B15: Ti | C15: =HelligdagsNavn(A15,0,0) ->  | D15: 14:00:00 | E15: 00:45:00 | F15: =IF(D15="","",(E15-D15)+(D15>E15)) -> 10:45:00 | G15: =IF(AND(D15<>"",E15<>""),ColTime(D15,E15,Data!$J$3,Data!$L$3),"") -> 04:00:00 | H15: =IF(AND(D15<>"",E15<>""),ColTime(D15,E15,Data!$J$4,Data!$L$4),"") -> 03:00:00 | J15: =IF(AND(D15<>"",E15<>""),ColTime(D15,E15,Data!$J$5,Data!$L$5),"") -> 03:45:00
A16: 2023-04-12 | B16: On | G16: =IF(AND(D16<>"",E16<>""),ColTime(D16,E16,Data!$J$3,Data!$L$3),"") ->  | H16: =IF(AND(D16<>"",E16<>""),ColTime(D16,E16,Data!$J$4,Data!$L$4),"") ->  | J16: =IF(AND(D16<>"",E16<>""),ColTime(D16,E16,Data!$J$5,Data!$L$5),"") -> 
A17: 2023-04-13 | B17: To | G17: =IF(AND(D17<>"",E17<>""),ColTime(D17,E17,Data!$J$3,Data!$L$3),"") ->  | H17: =IF(AND(D17<>"",E17<>""),ColTime(D17,E17,Data!$J$4,Data!$L$4),"") ->  | J17: =IF(AND(D17<>"",E17<>""),ColTime(D17,E17,Data!$J$5,Data!$L$5),"") -> 
A18: 2023-04-14 | B18: Fr | G18: =IF(AND(D18<>"",E18<>""),ColTime(D18,E18,Data!$J$3,Data!$L$3),"") ->  | H18: =IF(AND(D18<>"",E18<>""),ColTime(D18,E18,Data!$J$4,Data!$L$4),"") ->  | J18: =IF(AND(D18<>"",E18<>""),ColTime(D18,E18,Data!$J$5,Data!$L$5),"") -> 
A19: 2023-04-15 | B19: Lø | G19: =IF(AND(D19<>"",E19<>""),ColTime(D19,E19,Data!$J$3,Data!$L$3),"") ->  | H19: =IF(AND(D19<>"",E19<>""),ColTime(D19,E19,Data!$J$4,Data!$L$4),"") ->  | J19: =IF(AND(D19<>"",E19<>""),ColTime(D19,E19,Data!$J$5,Data!$L$5),"") -> 
A20: 2023-04-16 | B20: Sø | G20: =IF(AND(D20<>"",E20<>""),ColTime(D20,E20,Data!$J$3,Data!$L$3),"") ->  | H20: =IF(AND(D20<>"",E20<>""),ColTime(D20,E20,Data!$J$4,Data!$L$4),"") ->  | J20: =IF(AND(D20<>"",E20<>""),ColTime(D20,E20,Data!$J$5,Data!$L$5),"") -> 
A21: Total timer | F21: =IF(SUM(F12:F20)<>"0",SUM(F7:F20),"") -> 0.8958333333 | G21: =IF(SUM(G7:G20)<>"0",SUM(G7:G20),"") -> 0.3333333333 | H21: =IF(SUM(H7:H20)<>"0",SUM(H7:H20),"") -> 0.25 | J21: =IF(SUM(J7:J20)<>"0",SUM(J7:J20),"") -> 0.3125
A22: Timer 1/100 | F22: =IF(F21<>"",ROUND(F21*24,2),"") -> 21.5 | G22: =IF(G21<>"",ROUND(G21*24,2),"") -> 8 | H22: 6 | J22: 7.5
A23: Satser | F23: =Data!B14 -> 125 | G23: =Data!B19 -> 125 | H23: =Data!B16 -> 27.5 | J23: =Data!B18 -> 90
F24: =IF(F21<>"",F22*F23,"") -> 2687.5 | G24: =IF(G21<>"",G22*G23,"") -> 1000 | H24: 165 | J24: 675
A25: Løn | F25: =SUM(F24:P24) -> 4527.5

Sheet Data
B2: Timeløn | C2: Tillæg | E2: Start | F2: Slut
A3: Normal løn | E3: 06:00:00 | F3: 18:00:00 | H3: Dagtimer | I3: Fra kl. | J3: 06:00:00 | K3: Til kl. | L3: 18:00:00
A4: Hverdagstillæg | E4: 18:00:00 | F4: 06:00:00 | H4: AftenTimer | I4: Fra kl. | J4: 18:00:00 | K4: Til kl. | L4: 21:00:00
A5: Lørdag | E5: 00:00:00 | F5: 14:59:00 | H5: NatTimer | I5: Fra kl. | J5: 21:00:00 | K5: Til kl. | L5: 06:00:00
A6: Lørdagstillæg | E6: 15:00:00 | F6: 1 | H6: Morgentimer | I6: Fra kl. | J6: 04:00:00 | K6: Til kl. | L6: 06:00:00
A7: Søn- og helligdage | E7: 00:00:00 | F7: 23:59:00 | H7: Grundlovsdag | I7: Fra kl. | J7: 12:00:00 | K7: Til kl. | L7: 00:00:00
A14: Grundløn | B14: 125
A15: 0 | B15: =$B$14*A15 -> 0
A16: 0.22 | B16: 27.5
A17: 0.5 | B17: 62.5
A18: 0.72 | B18: 90
A19: 1 | B19: 125
A20: 1.22 | B20: 152.5

Sheet Satser (hidden)
A3: Timeløn | B3: 119.62
A4: specielt tillæg | B4: 1.19
A5: Chauffør tillæg | B5: 4.95
A7: Samlet timeløn | B7: =SUM(B3:B5) -> 125.76
A9: overtidstillæg 50% | B9: 59.81
A10: pr. time | B10: =B7+B9 -> 185.57
A12: overtidstillæg 100% | B12: 119.62
A13: pr. time | B13: =B12+B7 -> 245.38
A15: Aftentillæg | B15: 18.8 | D15: Arbejde mellem 18:00 og 24:00, lørdag dog fra kl 14:00
A16: Nattillæg | B16: 21.81 | D16: Arbejde mellem 24:00 og 06:00
A17: Søndagstillæg | B17: 28.68
A19: Ledbus | B19: 3
A20: Trafiftælling | B20: 5
A21: Delt tjeneste | B21: 67 | D21: pr. arbejdsdag
B23: 07:24:00

Sheet Ark3
A1: https://petlibrary.tripod.com/index.htm
A3: https://commodore.bombjack.org/commodore/books-comal.htm
